bitfinex/quotes_ETHUSD_20240718
["timestamp","ask_amount","ask_price","bid_price","bid_amount"]
[1721341526992,2.90774,3439.1,3438.5,2.90822]
[1721341527959,2.90774,3439.1,3438.5,2.90817]
[1721341528302,2.90774,3439.1,3438.6,2.90815]
[1721341528596,2.90774,3439.1,3438.5,2.90823]
[1721341528803,2.90774,3439.1,3438.5,2.90817]
[1721341530401,2.90774,3439.1,3438.4,2.90826]
[1721341530879,2.90784,3439.0,3438.4,2.90826]
[1721341531383,2.90791,3438.9,3438.3,0.1]
[1721341531586,2.90791,3438.9,3438.3,3.00841]
[1721341531908,2.90774,3439.1,3438.5,2.90823]
[1721341532074,2.9076,3439.3,3438.8,5.38748]
[1721341532668,2.90741,3439.5,3438.8,5.38748]
[1721341532669,2.90741,3439.5,3438.9,2.9079]
[1721341533005,2.90741,3439.5,3438.8,2.4795]
[1721341533189,2.90759,3439.3,3438.8,5.38748]
[1721341534807,2.90766,3439.2,3438.8,2.4795]
[1721341534984,2.90759,3439.3,3438.8,2.4795]
[1721341536110,2.90782,3439.0,3438.3,5.3448]
[1721341536275,5.81571,3439.0,3438.3,5.3448]
[1721341536481,2.90782,3439.0,3438.3,5.3448]
[1721341536677,0.581501,3439.3,3438.3,5.3448]
[1721341537038,2.90762,3439.3,3438.7,2.90806]
[1721341537516,2.9074,3439.5,3438.9,2.9079]
[1721341537668,2.90731,3439.6,3439.1,2.3364]
[1721341539303,2.9074,3439.5,3439.1,2.3364]
[1721341539517,2.9069,3440.1,3439.1,2.3364]
[1721341539518,2.9075,3439.4,3439.1,2.3364]
[1721341539676,2.9075,3439.4,3438.6,5.8162]
[1721341539677,2.90756,3439.3,3438.7,2.4947]
[1721341539883,2.90756,3439.3,3438.7,5.40271]
[1721341540114,2.487,3439.5,3438.4,2.90827]
[1721341540315,2.487,3439.5,3438.5,2.90822]
[1721341540316,2.90778,3439.1,3438.5,2.90822]
[1721341540467,2.90782,3439.0,3438.3,5.29893]
[1721341540672,2.90782,3439.0,3438.4,5.90832]
[1721341540884,2.90774,3439.1,3438.4,3.0]
[1721341541124,2.90782,3439.0,3438.5,2.90823]
[1721341542194,2.90782,3439.0,3438.4,3.0]
[1721341542402,2.90772,3439.2,3438.6,2.90814]
[1721341542596,2.90772,3439.2,3438.5,2.90818]
[1721341543619,2.90774,3439.1,3438.5,2.90818]
[1721341544620,2.90766,3439.2,3438.5,2.90818]
[1721341545593,2.90766,3439.2,3438.5,5.81635]
[1721341545797,2.90766,3439.2,3438.6,2.90815]
[1721341546003,2.90778,3439.1,3438.4,5.90828]
[1721341547290,5.81559,3439.1,3438.4,5.90828]
[1721341547629,2.90791,3438.9,3438.3,5.29899]
[1721341548623,2.9083,3438.5,3438.3,0.1]
[1721341548827,5.81662,3438.5,3438.3,0.1]
[1721341549030,5.81664,3438.4,3438.3,0.1]
[1721341555512,10.99026,3438.4,3438.3,0.1]
[1721341558170,13.89858,3438.4,3438.3,0.1]
[1721341558357,16.89858,3438.4,3438.3,0.1]
[1721341560431,2.90942,3437.2,3436.8,9.745]
[1721341560631,2.90942,3437.2,3436.8,2.305]
[1721341560941,2.90943,3437.1,3436.8,2.305]
[1721341561330,2.90921,3437.4,3436.8,2.305]
[1721341561534,2.90935,3437.2,3436.8,2.305]
[1721341562088,2.90926,3437.3,3436.8,2.305]
[1721341562595,2.90934,3437.2,3436.8,2.305]
[1721341564033,2.90951,3437.0,3436.8,2.305]
[1721341564841,2.90959,3436.9,3436.4,5.305]
[1721341565138,2.90973,3436.8,3436.4,2.305]
[1721341565533,2.90981,3436.7,3436.4,2.305]
[1721341565828,5.82004,3436.4,3436.3,7.44]
[1721341566189,5.82004,3436.4,3435.9,2.305]
[1721341566190,2.91028,3436.1,3435.9,2.305]
[1721341566395,2.91036,3436.0,3435.9,2.305]
[1721341566676,2.91026,3436.2,3435.9,2.305]
[1721341567269,2.90951,3437.0,3435.9,2.305]
[1721341567469,2.91012,3436.3,3435.9,2.305]
[1721341568252,2.90983,3436.7,3436.0,2.91029]
[1721341568451,2.90974,3436.8,3436.0,2.91029]
[1721341568452,2.9099,3436.6,3436.0,2.91029]
[1721341568861,2.90998,3436.5,3435.9,2.305]
[1721341569137,2.90981,3436.7,3435.9,5.21539]
[1721341569334,2.90966,3436.9,3436.3,2.9101]
[1721341569567,2.9097,3436.8,3436.2,2.91018]
[1721341569938,2.9097,3436.8,3436.0,2.91032]
[1721341570330,2.9097,3436.8,3436.2,2.91014]
[1721341571565,2.90955,3437.0,3436.2,2.91014]
[1721341571767,2.90955,3437.0,3436.4,2.91001]
[1721341571971,2.90955,3437.0,3436.2,2.91012]
[1721341572170,2.90967,3436.9,3436.2,2.91012]
[1721341572476,2.90969,3436.8,3436.2,2.91012]
[1721341572680,3.200659,3436.8,3436.2,2.91012]
[1721341572837,2.90987,3436.6,3436.0,2.91032]
[1721341573041,2.90994,3436.5,3436.0,2.91032]
[1721341573441,2.90994,3436.5,3435.9,5.21539]
[1721341574176,2.90994,3436.5,3436.0,2.91035]
[1721341574379,3.2300309,3436.5,3435.9,2.305]
[1721341574580,2.91017,3436.3,3435.9,2.305]
[1721341576078,2.91017,3436.3,3435.6,10.35064]
[1721341576079,2.91021,3436.2,3435.6,10.35064]
[1721341576282,2.91021,3436.2,3435.6,5.39074]
[1721341577327,2.91032,3436.1,3435.6,2.4801]
[1721341578336,2.91047,3435.9,3435.3,12.61345]
[1721341579831,2.91023,3436.2,3435.4,2.91085]
[1721341580000,0.3200909,3436.5,3435.3,9.7025]
[1721341580204,5.82067,3436.1,3435.5,2.91075]
[1721341580935,2.91032,3436.1,3435.5,2.91075]
[1721341581722,5.82066,3436.1,3435.5,2.91075]
[1721341581924,2.91032,3436.1,3435.3,12.61337]
[1721341582127,2.91049,3435.9,3435.3,12.61337]
[1721341582938,2.91052,3435.9,3435.3,12.61337]
[1721341584417,2.91066,3435.7,3435.3,9.7025]
[1721341584606,2.91071,3435.6,3435.3,9.7025]
[1721341584952,2.91071,3435.6,3435.3,7.44]
[1721341585236,2.91086,3435.4,3435.3,7.44]
[1721341585440,2.91079,3435.5,3435.0,2.3524]
[1721341587327,2.91056,3435.8,3435.0,5.26358]
[1721341587727,2.91074,3435.6,3435.0,5.26358]
[1721341588452,0.05891229,3435.5,3435.0,2.3524]
[1721341588631,2.91087,3435.4,3435.0,2.3524]
[1721341589553,2.91093,3435.4,3435.0,2.3524]
[1721341589778,2.91074,3435.6,3435.0,5.2636]
[1721341589962,2.91074,3435.6,3435.1,2.91112]
[1721341590280,2.91074,3435.6,3435.0,2.3524]
[1721341590479,2.91074,3435.6,3435.0,5.26355]
[1721341590644,5.82151,3435.6,3435.0,5.26355]
[1721341590848,2.91074,3435.6,3435.0,5.26355]
[1721341591449,5.82114,3435.8,3435.1,2.9111]
[1721341591672,2.91062,3435.7,3435.1,2.9111]
[1721341591947,2.91049,3435.9,3435.3,2.9109]
[1721341592543,2.91055,3435.8,3435.1,2.91111]
[1721341592744,2.91061,3435.7,3435.1,5.82218]
[1721341593053,2.91061,3435.7,3435.1,2.91107]
[1721341593259,2.91075,3435.6,3435.1,2.91107]
[1721341593973,2.91075,3435.6,3435.0,2.3524]
[1721341594142,3.201825,3435.6,3435.0,5.2636]
[1721341594482,0.291075,3435.6,3435.0,2.3524]
[1721341595443,2.91087,3435.4,3435.0,2.3524]
[1721341596260,2.3746,3435.3,3434.7,7.44]
[1721341596447,2.91103,3435.2,3434.8,2.2744]
[1721341596651,3.202133,3435.2,3434.8,2.2744]
[1721341597966,2.91097,3435.3,3434.8,2.2744]
[1721341598271,2.91066,3435.7,3435.1,2.91111]
[1721341598948,0.79344223,3436.0,3435.1,2.91111]
[1721341599182,2.91058,3435.8,3435.1,2.91111]
[1721341599389,2.91047,3435.9,3435.4,2.3133]
[1721341599591,2.91054,3435.8,3435.4,2.3133]
[1721341599977,2.91059,3435.8,3435.4,2.3133]
[1721341601402,2.91062,3435.7,3435.0,5.22669]
[1721341601698,2.91062,3435.7,3435.1,2.91112]
[1721341602262,2.91048,3435.9,3435.0,5.22669]
[1721341602487,0.88207,3435.9,3434.6,5.227]
[1721341602679,0.88207,3435.9,3434.8,2.91137]
[1721341602680,2.91091,3435.4,3434.8,2.91137]
[1721341603562,2.91096,3435.3,3434.8,2.91137]
[1721341604657,2.91084,3435.5,3434.8,2.91137]
[1721341604874,2.91088,3435.4,3434.8,2.91137]
[1721341605121,2.91088,3435.4,3434.9,2.91127]
[1721341606411,2.91097,3435.3,3434.7,2.9114]
[1721341611255,2.91107,3435.2,3434.6,5.227]
[1721341611945,2.91095,3435.3,3434.8,2.91137]
[1721341613538,2.91095,3435.3,3434.6,5.22696]
[1721341613715,2.91105,3435.2,3434.6,5.22696]
[1721341614155,2.91105,3435.2,3434.6,2.3155]
[1721341614643,2.91112,3435.1,3434.6,5.22704]
[1721341615626,2.91112,3435.1,3434.6,2.3155]
[1721341616322,2.91112,3435.1,3434.6,5.22703]
[1721341618067,2.9112,3435.0,3434.6,2.3155]
[1721341619123,2.9111,3435.2,3434.6,2.3155]
[1721341619327,2.9111,3435.2,3434.6,5.22701]
[1721341619525,0.291088,3435.4,3434.6,5.22701]
[1721341619868,0.291088,3435.4,3434.8,2.91136]
[1721341620081,2.911,3435.3,3434.8,2.91136]
[1721341621438,5.82202,3435.3,3434.8,2.91136]
[1721341621639,2.91108,3435.2,3434.6,5.22701]
[1721341621859,2.91108,3435.2,3434.6,8.13848]
[1721341622061,2.91108,3435.2,3434.6,5.22697]
[1721341622291,2.91108,3435.2,3434.6,8.13845]
[1721341622445,2.91108,3435.2,3434.6,5.22697]
[1721341622786,3.58352788,3435.2,3434.6,5.22697]
[1721341623961,0.67244788,3435.2,3434.7,2.91141]
[1721341624478,3.58353788,3435.2,3434.7,2.91141]
[1721341625614,3.58353788,3435.2,3434.6,5.22699]
[1721341625815,3.58353788,3435.2,3434.7,2.91145]
[1721341626178,2.91109,3435.2,3434.7,2.91145]
[1721341630588,1.039,3434.8,3434.3,8.04150961]
[1721341630793,1.039,3434.6,3434.3,7.44]
[1721341631000,2.91152,3434.7,3434.3,7.44]
[1721341631747,3.95054,3434.6,3434.3,7.44]
[1721341631952,4.636736,3434.6,3434.3,7.44]
[1721341632308,2.91163,3434.5,3434.1,2.4848]
[1721341633059,1.039,3434.4,3434.1,2.4848]
[1721341633533,2.91163,3434.5,3434.1,2.4848]
[1721341634565,3.95091,3434.2,3433.8,9.9248]
[1721341634879,3.95091,3434.2,3433.8,7.44]
[1721341634880,2.91197,3434.1,3433.8,7.44]
[1721341635406,2.97088229,3434.1,3433.8,7.44]
[1721341635831,1.039,3434.2,3433.8,7.44]
[1721341636021,1.039,3434.4,3433.8,10.35217]
[1721341636352,3.3753636,3434.5,3433.8,10.35217]
[1721341636564,3.54041436,3434.4,3433.8,10.35217]
[1721341637208,2.91159,3434.6,3434.0,2.912]
[1721341638655,2.91164,3434.5,3434.0,2.912]
[1721341638844,2.91164,3434.5,3433.8,10.35217]
[1721341639025,2.91172,3434.4,3433.8,10.35214]
[1721341639221,0.582331,3434.3,3433.8,10.35214]
[1721341639665,2.91193,3434.2,3433.8,7.44]
[1721341641282,3.494191,3434.3,3433.8,7.44]
[1721341642328,3.494191,3434.3,3433.8,10.35216]
[1721341642329,0.582331,3434.3,3433.8,10.35216]
[1721341642844,3.494141,3434.3,3433.8,7.44]
[1721341643023,0.6405911,3434.2,3433.8,10.35222]
[1721341643355,2.91176,3434.4,3433.8,10.35222]
[1721341643664,2.91185,3434.3,3433.8,10.35222]
[1721341643873,2.91176,3434.4,3433.8,10.35217]
[1721341644244,2.91176,3434.4,3433.8,2.91217]
[1721341644864,2.494,3434.4,3433.5,9.9248]
[1721341645041,2.91205,3434.0,3433.5,9.9248]
[1721341646670,2.91205,3434.0,3433.5,12.83726]
[1721341648243,2.91189,3434.2,3433.5,12.83726]
[1721341648429,3.16711123,3434.3,3433.7,2.91224]
[1721341648631,3.16711123,3434.3,3433.8,2.91221]
[1721341649782,0.25529123,3434.3,3433.8,2.91221]
[1721341649931,2.91123,3435.0,3434.2,5.20461]
[1721341650131,5.91129,3434.9,3434.3,2.91173]
[1721341650445,2.91121,3435.0,3434.5,2.91163]
[1721341651737,5.91107,3435.2,3434.5,2.91163]
[1721341652041,9.9784468,3435.2,3434.5,2.91163]
[1721341652243,2.91121,3435.0,3434.4,2.91171]
[1721341653061,2.91121,3435.0,3434.4,2.91167]
[1721341653238,2.91121,3435.0,3434.3,2.91179]
[1721341653435,2.91137,3434.8,3434.3,2.91179]
[1721341656550,2.91121,3435.0,3434.3,2.91173]
[1721341656751,2.91121,3435.0,3434.4,2.91169]
[1721341657080,4.15846468,3435.0,3434.4,2.91169]
[1721341657287,7.06973468,3435.0,3434.4,2.91169]
[1721341657485,4.15846468,3435.0,3434.4,2.91169]
[1721341658367,4.15850468,3435.0,3434.5,2.91158]
[1721341661989,1.24725468,3435.0,3434.5,2.91158]
[1721341663768,3.201978,3435.4,3434.2,2.2928]
[1721341663992,2.9107,3435.6,3435.0,2.9112]
[1721341664150,2.9107,3435.6,3434.9,2.91123]
[1721341664151,1.039,3435.4,3434.9,2.91123]
[1721341665169,1.039,3435.4,3435.0,2.9112]
[1721341665573,1.039,3435.4,3435.1,2.91112]
[1721341666097,1.039,3435.4,3435.2,2.91098]
[1721341666306,2.91061,3435.7,3435.2,2.91098]
[1721341666602,3.492726,3435.7,3435.2,2.91098]
[1721341666767,2.9107,3435.6,3435.0,2.91119]
[1721341667161,2.91079,3435.5,3435.0,2.91119]
[1721341668175,2.91118,3435.1,3434.6,7.44]
[1721341668369,2.91131,3434.9,3434.6,7.44]
[1721341668571,0.582249,3434.9,3434.6,7.44]
[1721341668787,2.91121,3435.0,3434.6,7.44]
[1721341669394,2.9113,3434.9,3434.6,7.44]
[1721341670578,2.91146,3434.7,3434.6,7.44]
[1721341670773,0.05891229,3434.8,3434.1,2.91193]
[1721341671013,5.31253,3434.9,3434.1,2.91193]
[1721341671014,2.91147,3434.7,3434.1,2.91193]
[1721341672178,2.9116,3434.6,3433.9,5.33932]
[1721341672497,3.73976123,3434.7,3433.9,2.4272]
[1721341672498,0.82829123,3434.7,3433.9,2.4272]
[1721341672698,2.91142,3434.8,3434.2,2.91185]
[1721341673277,2.91142,3434.8,3434.2,2.91181]
[1721341674281,2.91142,3434.8,3434.3,2.91178]
[1721341674679,2.91116,3435.1,3434.4,5.1857]
[1721341674680,2.91127,3435.0,3434.4,5.1857]
[1721341674875,2.91129,3434.9,3434.4,5.1857]
[1721341675515,2.91129,3434.9,3434.2,5.18581]
[1721341676382,2.91129,3434.9,3434.3,2.91177]
[1721341677980,2.91129,3434.9,3434.4,2.91167]
[1721341678197,2.91138,3434.8,3434.2,8.09763]
[1721341678526,3.5761163,3434.8,3434.2,8.09763]
[1721341679209,3.735963,3435.0,3434.2,2.274]
[1721341679424,2.91127,3435.0,3434.4,2.91167]
[1721341679725,2.91135,3434.9,3434.4,2.91167]
[1721341679952,2.91135,3434.9,3434.3,2.91178]
[1721341680719,0.45630944,3434.8,3434.3,2.91178]
[1721341681306,0.45630944,3434.8,3434.4,2.91171]
[1721341682923,0.45630944,3434.8,3434.5,2.91163]
[1721341683625,0.45630944,3434.8,3434.6,2.91149]
[1721341683830,0.45630944,3434.8,3434.7,2.91146]
[1721341684909,0.45630944,3434.8,3434.5,2.91158]
[1721341686138,0.45630944,3434.8,3434.6,2.91153]
[1721341687460,2.91104,3435.2,3434.6,2.91153]
[1721341688025,2.91113,3435.1,3434.6,2.91153]
[1721341688231,1.039,3435.0,3434.6,2.91153]
[1721341688807,3.95039,3434.8,3434.2,5.18582]
[1721341689117,3.95039,3434.8,3434.2,2.274]
[1721341689118,1.039,3434.8,3434.2,2.274]
[1721341689505,2.9115,3434.7,3434.2,2.274]
[1721341690650,3.31431269,3435.1,3434.4,2.91167]
[1721341690804,4.52659127,3435.0,3434.4,2.91167]
[1721341691245,2.91134,3434.9,3434.2,5.1858]
[1721341691742,2.91134,3434.9,3434.3,2.91175]
[1721341692316,4.52655127,3435.0,3434.2,5.18585]
[1721341692646,2.9113,3434.9,3434.2,5.18585]
[1721341692846,3.51820149,3434.9,3434.2,5.18585]
[1721341693047,1.039,3434.8,3434.3,2.91174]
[1721341694144,1.039,3434.6,3434.2,2.274]
[1721341694445,2.91146,3434.7,3434.2,2.274]
[1721341694994,2.91146,3434.7,3434.2,5.18587]
[1721341695309,3.51820149,3434.9,3434.3,2.91174]
[1721341695652,2.9113,3434.9,3434.3,2.91174]
[1721341695835,2.91116,3435.1,3434.4,2.91164]
[1721341696149,2.91079,3435.5,3434.9,5.36423]
[1721341696829,2.91089,3435.4,3434.9,5.36423]
[1721341697338,1.039,3435.3,3434.9,2.91123]
[1721341698646,3.9551556,3435.4,3434.9,2.91123]
[1721341698869,2.91089,3435.4,3434.9,2.91123]
[1721341699738,1.039,3435.3,3434.7,2.91139]
[1721341700270,1.039,3435.3,3434.8,2.9113]
[1721341701046,1.039,3435.3,3434.9,2.91127]
[1721341701452,1.039,3435.3,3435.0,2.9112]
[1721341701976,1.039,3435.3,3434.8,2.9113]
[1721341702482,1.039,3435.3,3434.9,2.91128]
[1721341705164,1.039,3435.1,3434.7,2.91141]
[1721341706538,2.91123,3435.0,3434.5,2.91162]
[1721341707746,1.039,3435.1,3434.6,2.91154]
[1721341708458,3.95012,3435.1,3434.6,2.91154]
[1721341710583,1.039,3435.1,3434.6,2.9115]
[1721341710781,1.039,3435.1,3434.6,2.91149]
[1721341710986,2.4645,3435.5,3434.8,2.91129]
[1721341711288,1.039,3435.4,3434.9,2.4884]
[1721341711583,1.039,3435.4,3435.0,2.91119]
[1721341711984,1.039,3435.2,3434.9,2.4884]
[1721341714498,1.039,3435.2,3434.9,2.91128]
[1721341717365,1.039,3435.2,3434.7,2.91138]
[1721341718599,1.039,3435.2,3434.8,2.91136]
[1721341724475,1.039,3435.4,3434.9,2.91123]
[1721341724675,3.94987,3435.4,3434.9,2.91123]
[1721341727277,2.91042,3436.0,3435.0,2.4313]
[1721341727503,2.91044,3435.9,3435.3,2.91088]
[1721341727973,1.039,3435.8,3435.3,2.91088]
[1721341728178,2.91044,3435.9,3435.3,2.91088]
[1721341728179,1.039,3435.6,3435.3,2.91088]
[1721341728701,1.039,3435.6,3435.0,2.4313]
[1721341728923,1.039,3435.2,3434.7,5.17684]
[1721341729105,1.039,3435.0,3434.7,5.17684]
[1721341729305,3.26299,3435.5,3434.7,2.91144]
[1721341729306,1.039,3435.2,3434.7,2.91144]
[1721341729788,1.039,3435.2,3434.5,2.91159]
[1721341729789,6.43264,3435.2,3434.5,5.82316]
[1721341730494,6.43264,3435.2,3434.6,2.91154]
[1721341730691,1.039,3435.0,3434.4,2.2654]
[1721341730907,2.3178,3435.3,3434.4,2.2654]
[1721341730908,1.039,3434.8,3434.4,2.2654]
[1721341731135,2.3178,3435.3,3434.1,10.35192]
[1721341731136,1.039,3434.6,3434.1,10.35192]
[1721341731432,3.95059,3434.6,3434.1,7.44]
[1721341732544,3.95059,3434.6,3434.1,10.35195]
[1721341733395,2.91159,3434.6,3434.1,10.35195]
[1721341734030,3.95059,3434.6,3434.1,10.35195]
[1721341734403,2.91159,3434.6,3434.1,10.35195]
[1721341735838,2.91147,3434.7,3434.1,10.35195]
[1721341736441,2.91147,3434.7,3434.1,2.91195]
[1721341737736,3.95037,3434.8,3434.1,2.91195]
[1721341737901,3.95037,3434.8,3434.1,5.82384]
[1721341738105,2.91123,3435.0,3434.3,2.91174]
[1721341738304,2.91112,3435.1,3434.5,2.91157]
[1721341738608,2.91121,3435.0,3434.5,2.91157]
[1721341739410,2.91129,3434.9,3434.4,2.91169]
[1721341740227,3.95017,3435.1,3434.5,2.91162]
[1721341741142,5.02969814,3435.1,3434.5,2.91162]
[1721341741442,2.91121,3435.0,3434.5,2.91162]
[1721341744263,2.91121,3435.0,3434.4,2.91171]
[1721341745049,1.039,3434.9,3434.4,2.91171]
[1721341745354,3.9503,3434.9,3434.4,2.91171]
[1721341748330,3.99065814,3435.1,3434.5,2.458]
[1721341748331,2.91113,3435.1,3434.5,2.458]
[1721341749351,2.91113,3435.1,3434.6,2.91153]
[1721341749933,5.28828,3435.6,3434.8,2.91131]
[1721341750132,1.039,3435.5,3435.2,2.91098]
[1721341754529,2.9104,3436.0,3435.2,2.91098]
[1721341754730,1.82408221,3436.1,3435.1,2.458]
[1721341754951,5.91022,3436.2,3435.6,2.91068]
[1721341754952,2.91022,3436.2,3435.6,2.91068]
[1721341755159,3.94922,3436.2,3435.7,2.458]
[1721341755453,1.039,3436.0,3435.7,2.458]
[1721341755656,1.039,3436.0,3435.7,5.36859]
[1721341755857,1.039,3436.0,3435.8,2.91052]
[1721341757124,1.039,3436.0,3435.7,2.458]
[1721341757757,2.91067,3435.7,3435.1,2.91106]
[1721341757929,1.039,3435.5,3435.1,2.91106]
[1721341758267,1.039,3435.9,3435.4,2.91079]
[1721341758617,1.039,3435.7,3435.4,2.91079]
[1721341759969,1.039,3435.7,3435.2,5.82193]
[1721341760374,1.039,3435.7,3435.3,2.9109]
[1721341760556,1.039,3435.7,3435.0,2.4014]
[1721341761068,1.039,3435.7,3435.1,2.91109]
[1721341761468,1.039,3435.7,3435.3,2.91087]
[1721341762973,1.039,3435.5,3435.3,2.91087]
[1721341763397,1.039,3435.7,3435.3,2.91087]
[1721341763721,1.039,3435.7,3435.1,5.82212]
[1721341763998,1.039,3435.5,3435.2,2.91103]
[1721341766407,1.039,3435.7,3435.2,2.91103]
[1721341766600,1.7832133,3435.7,3435.2,2.91103]
[1721341766802,2.91049,3435.9,3435.3,2.91094]
[1721341767096,1.039,3435.8,3435.3,2.91094]
[1721341768689,3.94953,3435.8,3435.3,2.91094]
[1721341769194,1.039,3435.6,3435.3,2.91094]
[1721341774582,1.039,3435.8,3435.3,2.91094]
[1721341774805,1.433949,3435.8,3435.3,2.91094]
[1721341775014,1.039,3435.6,3435.3,2.91089]
[1721341777120,1.039,3435.6,3435.3,5.82179]
[1721341777525,1.039,3435.6,3435.4,2.91085]
[1721341778628,1.039,3435.8,3435.4,2.9108]
[1721341778794,1.039,3435.8,3435.5,5.24884]
[1721341778991,2.91029,3436.1,3435.5,5.24884]
[1721341778992,1.039,3436.0,3435.5,5.24884]
[1721341779199,1.039,3436.1,3435.7,2.91058]
[1721341779416,5.91013,3436.3,3435.8,2.91048]
[1721341779417,1.039,3436.3,3435.8,2.91048]
[1721341779590,1.039,3436.3,3435.9,2.91043]
[1721341780893,1.039,3436.3,3435.5,2.3381]
[1721341780894,2.90992,3436.6,3436.0,2.9103]
[1721341781103,1.039,3436.4,3436.1,2.3178]
[1721341781451,1.039,3436.4,3436.1,5.22807]
[1721341782424,1.039,3436.5,3436.1,2.3178]
[1721341782839,1.039,3436.5,3436.1,5.22802]
[1721341783199,1.733878,3436.5,3436.1,5.22802]
[1721341783919,1.733878,3436.5,3436.1,8.13824]
[1721341784445,1.733878,3436.5,3436.1,5.22802]
[1721341784802,3.0,3436.8,3436.2,2.91014]
[1721341785148,1.039,3436.8,3436.2,2.91014]
[1721341786066,1.039,3436.6,3436.2,2.91014]
[1721341789876,1.039,3436.6,3436.3,2.91009]
[1721341791587,1.039,3436.8,3436.5,2.90993]
[1721341794055,1.039,3437.1,3436.8,2.90967]
[1721341794256,1.039,3437.1,3436.9,2.90959]
[1721341794999,2.90902,3437.6,3437.1,2.90942]
[1721341795146,2.90857,3438.2,3437.2,2.3083]
[1721341795473,1.039,3437.9,3437.4,2.90916]
[1721341795848,1.039,3437.7,3437.4,2.90916]
[1721341796696,2.90872,3438.0,3437.2,2.3083]
[1721341796697,1.039,3437.5,3437.2,2.3083]
[1721341796899,1.039,3437.5,3436.1,4.58550473]
[1721341796900,1.039,3437.5,3436.9,2.90956]
[1721341797060,0.84453844,3438.1,3436.5,5.28229]
[1721341797061,1.039,3437.1,3436.5,5.28229]
[1721341797261,1.039,3437.1,3436.5,5.28226]
[1721341797262,3.94843,3437.1,3436.5,5.28226]
[1721341797476,3.94826,3437.3,3436.7,2.90968]
[1721341797677,3.94826,3437.3,3436.7,5.81937]
[1721341798063,3.94826,3437.3,3436.8,2.90964]
[1721341798064,1.039,3437.3,3436.8,2.90964]
[1721341798271,2.909,3437.6,3436.9,2.90954]
[1721341798468,1.039,3437.5,3436.9,2.90954]
[1721341799203,1.039,3437.5,3437.0,2.90944]
[1721341800317,1.039,3437.5,3436.9,2.90954]
[1721341800318,1.039,3437.5,3437.2,2.90932]
[1721341800673,5.9089,3437.8,3437.1,2.3724]
[1721341800674,4.039,3437.8,3437.1,2.3724]
[1721341800876,3.94807,3437.6,3437.1,2.3724]
[1721341801119,1.039,3437.6,3437.2,2.90934]
[1721341801329,1.039,3437.6,3437.1,2.3724]
[1721341801826,1.039,3437.8,3437.2,2.90928]
[1721341802478,3.94785,3437.8,3437.2,2.90928]
[1721341802807,1.039,3437.4,3436.8,5.81924]
[1721341803129,1.039,3437.0,3436.6,2.4667]
[1721341803420,3.94868,3436.8,3436.3,5.31273]
[1721341803577,1.039,3436.8,3436.3,5.31273]
[1721341803777,3.94856,3437.0,3436.3,5.31273]
[1721341804182,1.039,3436.6,3436.3,2.4027]
[1721341804692,2.90975,3436.8,3436.3,2.4027]
[1721341804693,3.94875,3436.8,3436.3,2.4027]
[1721341805111,2.90977,3436.7,3436.3,2.4027]
[1721341806028,3.94869,3436.8,3436.3,2.4027]
[1721341806324,2.90969,3436.8,3436.3,5.3128]
[1721341806491,5.81912,3437.0,3436.3,5.3128]
[1721341806691,2.9096,3436.9,3436.3,5.3128]
[1721341807094,2.9093,3437.3,3436.3,2.4027]
[1721341807398,2.90934,3437.2,3436.6,2.90979]
[1721341808328,2.90921,3437.4,3436.8,2.3015]
[1721341808934,2.90927,3437.3,3436.8,2.3015]
[1721341809151,2.90949,3437.1,3436.5,2.3015]
[1721341809359,2.91002,3436.5,3435.9,2.3015]
[1721341809627,2.91024,3436.2,3435.7,1.5176343]
[1721341809830,2.91043,3436.0,3435.7,1.5176343]
[1721341810038,2.91045,3435.9,3435.7,1.5176343]
[1721341810395,2.91045,3435.9,3435.3,9.7415]
[1721341810618,2.91045,3435.9,3435.3,12.6524]
[1721341811015,2.91045,3435.9,3435.3,15.5633]
[1721341811340,2.91045,3435.9,3435.3,12.6524]
[1721341812187,2.91045,3435.9,3435.4,2.91086]
[1721341812390,2.91041,3436.0,3435.4,2.91086]
[1721341813824,2.91041,3436.0,3435.4,5.82165]
[1721341814224,2.91027,3436.1,3435.5,2.91075]
[1721341814719,2.9101,3436.3,3435.7,2.91058]
[1721341816146,2.9101,3436.3,3435.5,2.91076]
[1721341816147,2.91021,3436.2,3435.5,2.91076]
[1721341816358,2.91021,3436.2,3435.6,2.91069]
[1721341818467,3.20111,3436.3,3435.6,2.91062]
[1721341818642,2.9101,3436.3,3435.7,2.91061]
[1721341818963,2.91021,3436.2,3435.4,2.91082]
[1721341819785,8.28871,3436.8,3435.4,2.91082]
[1721341819786,2.91041,3436.0,3435.4,2.91082]
[1721341820316,2.91045,3435.9,3435.4,2.91082]
[1721341821256,2.91045,3435.9,3435.0,2.91116]
[1721341821257,2.91075,3435.6,3435.0,2.91116]
[1721341821769,2.91075,3435.6,3434.9,2.2992]
[1721341821770,2.91078,3435.5,3434.9,2.2992]
[1721341823363,2.91062,3435.7,3435.1,2.91112]
[1721341824655,2.91062,3435.7,3435.0,2.91112]
[1721341824656,2.91023,3436.2,3435.5,2.91073]
[1721341825874,2.91036,3436.0,3435.5,2.91073]